Cogmind - Beta 12 @@@ ROGUE MODE // 2024.01.17 @ 15:35:05 Player: UberDoot Result: Destroyed by as-36073 with Assembled Heavy Rifle Performance ------------- Evolutions (0) 0 Regions Visited (2) 400 Robots Destroyed (33) 165 Value Destroyed (539) 539 Prototype IDs (2) 40 Alien Tech Used (0) 0 Bonus (0) 0 TOTAL SCORE: 1144 Bonus ------- None Cogmind --------- Core Integrity 0/250 Matter 210/300 Energy 125/125 System Corruption 0% Temperature Cool (0) Movement Treading (320) Ox2 Location -10/Mines Parts ------- > --- POWER (1) -------- Light Ion Engine > --- PROPULSION (2) --- Light Treads > --- UTILITY (2) ------ High-capacity Storage Unit Light Armor Plating > --- WEAPON (2) ------- Rocket Launcher > --- INVENTORY (20) --- Light Ion Engine Compact Wheel Compact Wheel Hover Unit Hover Unit Hover Unit Hover Unit Hover Unit Medium Storage Unit Huge Storage Unit Sensor Array Seismic Detector ECM Suite Tractor Beam Beam Cannon Grenade Launcher Datajack Mining Laser Peak State ------------ > --- POWER ------------ Light Ion Engine > --- PROPULSION ------- Light Treads Light Treads > --- UTILITY ---------- High-capacity Storage Unit Light Armor Plating > --- WEAPON ----------- Assault Rifle Rocket Launcher > --- INVENTORY -------- Light Ion Engine Compact Wheel Compact Wheel Hover Unit Hover Unit Hover Unit Hover Unit Hover Unit Medium Storage Unit Huge Storage Unit Sensor Array Seismic Detector ECM Suite Light Armor Plating Tractor Beam Beam Cannon Grenade Launcher Grenade Launcher Datajack Mining Laser [Rating: 10] Favorites ----------- Power Light Ion Engine Engine Light Ion Engine Propulsion Light Treads Treads Light Treads Leg Aluminum Leg Utility Light Armor Plating Device Seismic Detector Storage High-capacity Storage Unit Protection Light Armor Plating Weapon Beam Cannon Energy Gun EM Pulse Gun Energy Cannon Beam Cannon Ballistic Gun Assault Rifle Launcher Rocket Launcher Special Weapon Mining Laser Build | -11 -10 -10 ------- Run | Jun Mat Min Slots Evolved . | . . . Power . | . . . Propulsion . | . . . Utility . | . . . Weapon . | . . . Parts Attached 28 | 7 16 5 Power 3 | 1 2 . Engine 3 | 1 2 . Core . | . . . Reactor . | . . . Propulsion 5 | 2 2 1 Treads 3 | . 2 1 Leg 2 | 2 . . Wheel . | . . . Hover . | . . . Flight . | . . . Utility 9 | 2 6 1 Device 1 | 1 . . Storage 4 | 1 3 . Processor . | . . . Hackware . | . . . Protection 4 | . 3 1 Artifact . | . . . Weapon 11 | 2 6 3 Energy Gun 3 | 2 1 . Energy Cannon 1 | . 1 . Ballistic Gun 4 | . 3 1 Ballistic Cannon . | . . . Launcher 2 | . . 2 Special Weapon 1 | . 1 . Impact Weapon . | . . . Slashing Weapon . | . . . Piercing Weapon . | . . . Special Melee Weapon . | . . . Unidentified Prototypes . | . . . Parts Lost 5 | . 1 4 Power 1 | . 1 . Propulsion 1 | . . 1 Utility 1 | . . 1 Weapon 2 | . . 2 Highest Loss Streak 4 | . 1 4 To Critical Strikes . | . . . Average Slot Usage (%) 99 | . 99 99 Engine 13 | . 13 14 Treads 21 | . 18 27 Leg 6 | . 9 . Storage 14 | . 14 14 Protection 13 | . 12 13 Energy Cannon 13 | . 13 13 Ballistic Gun 10 | . 10 9 Special Weapon 2 | . 2 3 Naked Turns . | . . . Heaviest Build 53 | 13 51 53 Greatest Support 40 | 20 40 40 Greatest Overweight (x) 2 | 1 1 2 Average Overweight (x) . | . . 1 Largest Inventory Capacity 25 | 8 25 20 Average Capacity 15 | 7 13 20 Most Carried 20 | 7 20 20 Average Carried 13 | 3 10 19 Final Capacity 20 | 8 20 20 Final Carried 20 | 7 20 18 Class Distribution -------------------- 100% | Mutant Dominant Class ---------------- Mutant | -10/Materials Mutant | -10/Mines Resources | -11 -10 -10 ----------- Run | Jun Mat Min Matter Collected 639 | 270 359 10 Remotely . | . . . Salvage Created 1039 | 141 825 73 Parts 73 | 9 56 8 Haulers Intercepted 2 | . 2 . Recyclers Shooed 1 | 1 . . Parts Field Recycled . | . . . Retrieved Matter . | . . . Parts Self-Destructed . | . . . Prevented . | . . . Kills | -11 -10 -10 ------- Run | Jun Mat Min Combat Hostiles Destroyed 28 | . 14 14 Guns 4 | . 4 . Cannons 13 | . 10 3 AOE 11 | . . 11 Classes Destroyed 10 | 2 7 1 Worker 1 | . 1 . Builder 1 | . 1 . Tunneler 2 | 2 . . Hauler 2 | . 2 . Recycler 4 | 1 3 . Operator 3 | . 3 . Watcher 3 | . 3 . Swarmer 9 | . 6 3 Grunt 8 | . 8 . Assembled 11 | . . 11 Best Kill Streak 11 | 3 5 11 Combat Bots Only 11 | . 5 11 Max Kills in Single Turn 4 | 1 1 4 Gunslinging . | . . . Exploded 4 | . . 4 Melee . | . . . Uniques/NPCs Destroyed . | . . . Combat | -11 -10 -10 -------- Run | Jun Mat Min Damage Taken 1449 | . 529 920 Core 254 | . 98 156 Absorbed by Shields . | . . . Core Remaining (%) 100 | 100 . . Volleys Fired 113 | 4 98 11 Largest 2 | 2 2 2 Hottest 160 | 80 160 160 Shots Fired 201 | 8 172 21 Gun 86 | 8 73 5 Cannon 102 | . 96 6 Launcher 5 | . . 5 Special 8 | . 3 5 Kinetic 73 | . 68 5 Thermal 115 | . 104 11 Explosive 5 | . . 5 Electromagnetic 8 | 8 . . Robot Hit Streak 6 | 3 6 5 Robot Miss Streak 4 | 1 3 4 Penetration Max . | . . . Secondary Targets . | . . . Shots Hit Robots 91 | 5 77 9 Core Hits 58 | 4 33 21 Critical Kills . | . . . Critical Parts Destroyed . | . . . Critical Strikes . | . . . Melee Attacks . | . . . Impact . | . . . Slashing . | . . . Piercing . | . . . Sneak Attacks . | . . . Combat Hostiles . | . . . Follow-up Attacks . | . . . Damage Inflicted 2232 | 84 1220 928 Guns 655 | 84 507 64 Cannons 734 | . 682 52 Explosions 812 | . . 812 Melee . | . . . Ramming 7 | . 7 . Kinetic 527 | . 463 64 Thermal 802 | . 750 52 Explosive 812 | . . 812 Electromagnetic 84 | 84 . . Impact . | . . . Slashing . | . . . Piercing . | . . . Highest Corruption . | . . . Average Corruption . | . . . Corruption Purged . | . . . Corruption Blocked . | . . . Overload Shots . | . . . Overflow Damage 76 | . 1 75 Projectiles 1 | . 1 . Explosions 75 | . . 75 Melee . | . . . Knockbacks . | . . . Impact . | . . . Kinetic . | . . . Secondary . | . . . Self-Inflicted Damage 57 | . . 57 Shots 2 | . . 2 Rammed 3 | . 3 . Targets Rammed 3 | . 3 . Kicked . | . . . Crushed . | . . . Highest Temperature 352 | 54 341 352 Average Temperature 98 | 25 94 149 Received Heat Transfer 245 | . 225 20 Effects 3 | . 1 2 Shutdowns 1 | . . 1 Energy Bleed 2 | . 1 1 Siege Activations . | . . . Robots Corrupted . | . . . Combat Hostiles . | . . . Parts Fried . | . . . Impact Corruptions . | . . . Robots Melted . | . . . Combat Hostiles . | . . . Parts Melted 3 | . 3 . Heat Transferred 1704 | . 1593 111 Parts Sabotaged . | . . . Parts Stolen . | . . . Parts Stripped . | . . . Power Chain Reactions . | . . . Missiles Intercepted . | . . . Alert | -11 -10 -10 ------- Run | Jun Mat Min Peak Influence 266 | 15 266 112 Initial 27 | . 9 27 Average 74 | 4 102 28 Maximum Alert Level 1 | . 1 . Low Security (%) 90 | 100 84 100 Level 1 9 | . 15 . Level 2 . | . . . Level 3 . | . . . Level 4 . | . . . Level 5 . | . . . High Security . | . . . Max Security . | . . . Squads Dispatched 4 | . 4 . Investigation 1 | . 1 . Extermination . | . . . Reinforcement 3 | . 3 . Assault . | . . . Garrison . | . . . Intercept . | . . . Searches Triggered . | . . . Construction Impeded . | . . . Haulers Reinforced . | . . . Active Scanning Responses . | . . . Cargo Convoy Interrupts . | . . . Stealth | -11 -10 -10 --------- Run | Jun Mat Min Distress Signals 2 | . 2 . Communications Jammed . | . . . Distress Signals . | . . . Times Spotted 54 | . 30 24 Peak Tracking Total 14 | . 5 14 Tactical Retreats 2 | . 1 1 Traps | -11 -10 -10 ------- Run | Jun Mat Min Traps Triggered 1 | . 1 . Indirectly . | . . . Trap Hack Attempts . | . . . Triggered . | . . . Disarmed . | . . . Reprogrammed . | . . . Reused . | . . . Traps Extracted . | . . . Installed . | . . . Triggered 1 | . . 1 Machines | -11 -10 -10 ---------- Run | Jun Mat Min Machines Disabled 2 | . 2 . Max in Single Turn 1 | . 1 . Machines Repaired . | . . . Machines Sabotaged . | . . . Overloaded Fab Kills . | . . . Hacking | -11 -10 -10 --------- Run | Jun Mat Min Machines Accessed 4 | . 3 1 Terminals 3 | . 2 1 Fabricators . | . . . Repair Stations . | . . . Recycling Units 1 | . 1 . Scanalyzers . | . . . Garrison Access . | . . . Total Hacks 13 | . 9 4 Successful 6 | . 4 2 Failed 7 | . 5 2 Catastrophic 1 | . . 1 Database Lockouts . | . . . Manual 6 | . 2 4 Terminals 11 | . 7 4 Fabricators . | . . . Repair Stations . | . . . Recycling Units 2 | . 2 . Scanalyzers . | . . . Garrison Access . | . . . Terminal Hacks 5 | . 3 2 Part Schematic 1 | . . 1 Robot Analysis 1 | . . 1 Prototype ID Bank 1 | . 1 . Emergency Access Points 1 | . 1 . Locate Traps 1 | . 1 . Fabricator Hacks . | . . . Repair Station Hacks . | . . . Recycling Unit Hacks 1 | . 1 . Retrieve Components 1 | . 1 . Scanalyzer . | . . . Garrison Access Hacks . | . . . Unauthorized Hacks . | . . . Terminals . | . . . Fabricators . | . . . Repair Stations . | . . . Recycling Units . | . . . Scanalyzers . | . . . Garrison Access . | . . . Data Cores Recovered . | . . . Used . | . . . Hacking Detections 4 | . 3 1 Full Trace Events . | . . . Feedback Events . | . . . Feedback Blocked . | . . . Robot Schematics Acquired . | . . . Robots Built . | . . . Authchips . | . . . Time . | . . . Total Robot Build Rating . | . . . Part Schematics Acquired 1 | . . 1 Parts Built . | . . . Authchips . | . . . Time . | . . . Total Part Build Rating . | . . . Parts Repaired . | . . . Time . | . . . Parts Recycled . | . . . Recycled Matter . | . . . Retrieved Matter . | . . . Retrieved Components 9 | . 9 . Parts Scanalyzed . | . . . Part Schematics Acquired . | . . . Parts Damaged . | . . . Bothacking | -11 -10 -10 ------------ Run | Jun Mat Min Used RIF Installer . | . . . Robots Hacked . | . . . Non-combat . | . . . Combat . | . . . Robot Hacks Applied . | . . . Relay Couplers Released . | . . . Fabnet Peak Effective % . | . . . Robots Rewired . | . . . Allies Hacked . | . . . Hacks Repelled . | . . . Allies | -11 -10 -10 -------- Run | Jun Mat Min Total Allies . | . . . Largest Group . | . . . Highest-Rated Group . | . . . Highest-Rated Ally . | . . . Total Orders . | . . . Ally Attacks . | . . . Total Damage . | . . . Kills . | . . . Allies Corrupted . | . . . Allies Melted . | . . . Intel | -11 -10 -10 ------- Run | Jun Mat Min Robot Analysis Total 1 | . . 1 Derelict Logs Recovered 1 | . . 1 Drone Launches . | . . . Drone Recoveries . | . . . Exploration | -11 -10 -10 ------------- Run | Jun Mat Min Turns Passed 2909 | 127 1846 936 Spaces Moved 1275 | 88 826 361 Core 13 | 13 . . Treads 824 | . 463 361 Legs 438 | 75 363 . Wheels . | . . . Hover . | . . . Flight . | . . . Fastest Speed 50 | 50 120 240 Average Speed 185 | 111 169 240 Slowest Speed 320 | 120 240 320 Overloaded Moves . | . . . Propulsion Burnouts . | . . . Robots Hopped . | . . . Cave-ins Triggered . | . . . Exploration Rate (%) 46 | 5 78 57 Regions Visited 2 Branch Regions 1 Pre-discovered Areas . | . . . Known Exits Taken . | . . . Unknown Exits Taken 2 | 1 1 . Scrap Searched 1 | . . 1 Spaces Dug 1 | . 1 . Terrain Destroyed 59 | . 1 58 Melee . | . . . Projectile 6 | . 1 5 AOE 53 | . . 53 Terrain Rammed . | . . . Walls Destroyed . | . . . Machines Disabled . | . . . Actions | -11 -10 -10 --------- Run | Jun Mat Min Total 1597 | 105 1094 398 Wait 122 | . 105 17 Move 1273 | 87 825 361 Hop . | . . . Pick Up 35 | 7 27 1 Fast Attach 12 | 7 4 1 Attach 9 | . 7 2 Detach 3 | . 2 1 Swap 7 | . 5 2 Drop 20 | . 18 2 Fire 113 | 4 98 11 Melee . | . . . Ram . | . . . Kick . | . . . Crush 3 | . 3 . Escape Stasis . | . . . Rewire . | . . . Trap . | . . . Miscellaneous . | . . . Route ------- -11/Junkyard -10/Materials (discovered 4 exits: [*Mat x2] / *Min x2) -10/Mines (discovered 1 exit: [*Mat]) History --------- Turn | Location | Event 12 | -11/Junkyard | Discovered new exit (range 16) 128 | -11/Junkyard | Entered Materials 300 | -10/Materials | Build established: Mutant 389 | -10/Materials | Discovered new exit (range 13) 796 | -10/Materials | Discovered new exit (range 14) 913 | -10/Materials | Discovered new exit (range 16) 1769 | -10/Materials | Discovered new exit (range 12) 1974 | -10/Materials | Entered Mines 2343 | -10/Mines | Learned Materials terminal intel 2599 | -10/Mines | Discovered new exit (range 5) 2668 | -10/Mines | Received a Rocket Launcher from a helpful Derelict 2879 | -10/Mines | Assembled infested the area 2887 | -10/Mines | Core integrity fell below 50% 2899 | -10/Mines | Core integrity fell below 20% 2910 | -10/Mines | Destroyed by as-36073 with Assembled Heavy Rifle Last Messages --------------- 02899_ as-06074 destroyed. 02899_ as-98112 destroyed. 02899_ as-80911 destroyed. 02899_ Assault Rifle destroyed. 02899_ Destroyed Assault Rifle. 02899_ as-13925 destroyed. 02899_ Destroyed Welding Torch. 02901_ K-01 Serf destroyed. 02901_ K-01 Serf collects debris. 02902_ The unstable cave ceiling collapses. 02903_ Lgt. Treads destroyed. 02904_ U-05 Engineer destroyed. 02904_ K-01 Serf collects debris. 02905_ T-07 Excavator destroyed. 02905_ K-01 Serf destroyed. 02908_ The unstable cave ceiling collapses. 02908_ as-46255 destroyed. 02909_ as-82320 destroyed. 02910_ Grenade Launcher destroyed. 02910_ as-68246 destroyed. Map ----- +----------------------------------------------------+ | ?????????????????????????????????????????????? | | ?????????????????????????????????????????????? | | ?????????????????????????????????????????????? | | ?????????????????????????????????????????????? | | ?????????????????????????????????????????????? | | ?????????????????????????????????????????????? | | ?????????????????????????????????????????????? | | ?????????????????????????????????????????????? | | ?????????????????????????????????????????????? | | ?????????????????????????????????????????????? | | ?????????????????????????????????????????????? | | ??????????????????????#??????????????????????? | | ?????????????????????# ??????????????????????? | | ?????????????????????# #?????????????????????? | | ?????????????????????# #???##????????????????? | | ??????????????######## ??? ????????????????? | | ??????????????? #???# #???????????????? | | ??????????????## = #???# #???????????????? | | ??????????????? = ?### ##??????????????? | | ????????????#### # ## ##?????????????? | | ?????????#### a # # ##????????????? | | ?????????# a #???? #####??? | | ????????????# a ## ???? | | ????????????# % ==%= #??????? | | ???????????????# a =% !% #??????? | | ???????????????#### @# *#######??????? | | ??????????????????########## " ##??????????? | | ???????????????????????????## ##?????????? | | ??????????????????????????## #?????????? | | ???????????????????????#### #??###????? | | ??????????????????????## #### ##???? | | ????????????????????### ## ##### | | ????????????????????# # | | ????????????????????# ## # | | ????????????????????##### #### ### # | | ????????????????????????## ##??## #?# # | | ?############???????????## ##???# ##?# # | | ?# #??????????## ##??## ##??# # | | ?# """ < #??????????# ########??##% | | ?# """ #??????????# """ ##?????#" # | | ?# """ ############ """ ##????##%" | | ?# """ #?????# [ | | ?# """ """ #?????### | | ?# """ """ ## ### ### #### ##???????? | | ?# """ """ T# #?# #?# #??### #####??#####?? | | ?# ## #?# #?# #????#####?????## ### | | ?# """ """ ## #?# #?# #??????????????# | | ?# """ """ ## #?# #?# #?????????????## | | ?# """ """ ## #?# #?# #?????######### | | ?# ## #?# #?# #????## | +----------------------------------------------------+ Best States ------------- Heat Dissipation 25 Energy Generation 10 Energy Capacity 125 Matter Stores 300 Matter Capacity 300 Sight Range 16 Terrain Scan Density 10 Armor Coverage 150 Evasion (%) 55 Recoil Reduction 2 Item Schematics ----------------- Propulsion Shielding | -10/Mines | Hacked Robot Schematics ------------------ None Fabricated ------------ Nothing Alien Tech Used ----------------- None Achievements -------------- None Challenges ------------ None Game ------ Seed PrecisionStorageLog Manual? 0 Play Time 00:23:25 Cumulative 16.8 hours Start 2024.01.17 @ 15:09:58 End 2024.01.17 @ 15:35:05 Sessions 1 Manual Loads 0 Difficulty Rogue Special Mode None Game No. 13 Rogue 13 Adventurer 0 Explorer 0 Win Type - Total 0 Types 0/0/0/0/0/0/0/0/0 Lore% 17 Gallery% 22 Achievement% 18 Wizard Run 0 Options --------- ASCII 0 Keyboard 1 Movement Numpad Keybinds 0 Fullscreen 1 Font 18/SmallcapsGlow Map View 76x50 Tactical HUD 1 Map Filters NONE Filters NONE Steam 1 RUN: 11e1690c-4cdd-4b7a-a4db-5a45676a6f5d